bitfinex/quotes_SOLUSD_20240906
["timestamp","ask_amount","ask_price","bid_price","bid_amount"]
[1725647946263,7.9435,125.89,125.82,23.2335]
[1725647946771,7.9472,125.83,125.82,15.2858]
[1725647947448,19.8555,125.91,125.82,15.2858]
[1725647947660,21.98650848,125.9,125.82,15.2858]
[1725647947843,19.8599,125.89,125.82,15.2858]
[1725647948051,7.9485,125.81,125.75,15.538]
[1725647948238,7.9473,125.83,125.76,7.9514]
[1725647948459,1.9869691,125.89,125.77,1.58957528]
[1725647948741,39.7044,125.94,125.77,1.58957528]
[1725647948742,21.83910146,125.93,125.8,7.9491]
[1725647948961,21.83910146,125.93,125.79,19.8742]
[1725647948962,7.9453,125.86,125.79,27.8238]
[1725647949142,1.98660146,125.93,125.79,19.8742]
[1725647949143,7.9441,125.88,125.79,19.8742]
[1725647949337,7.9433,125.9,125.81,19.8701]
[1725647949542,59.5552,125.94,125.81,19.8701]
[1725647949543,7.9435,125.89,125.83,7.9471]
[1725647949948,7.9435,125.89,125.82,52.9477]
[1725647950186,7.9428,125.9,125.82,46.58880242]
[1725647950471,59.5552,125.94,125.82,52.9472]
[1725647950472,7.9435,125.89,125.82,52.9472]
[1725647950674,7.9429,125.9,125.83,1.58870444]
[1725647950895,19.8508,125.94,125.84,7.9465]
[1725647951182,19.855,125.92,125.81,19.8701]
[1725647951390,7.9453,125.86,125.79,7.9496]
[1725647951686,7.9466,125.84,125.78,27.8259]
[1725647951855,39.7018,125.94,125.75,35.4186]
[1725647952049,39.7018,125.94,125.75,37.00815332]
[1725647952050,19.8643,125.86,125.75,37.00815332]
[1725647952252,7.9472,125.83,125.76,7.9511]
[1725647952470,21.84579979,125.89,125.78,7.9503]
[1725647952670,39.859,125.89,125.8,7.9491]
[1725647952854,7.9453,125.87,125.8,9.53820603]
[1725647953055,7.9441,125.88,125.81,7.9483]
[1725647953256,7.9441,125.88,125.82,54.53655979]
[1725647953568,7.9429,125.9,125.84,7.9465]
[1725647953775,7.9429,125.9,125.84,9.53517745]
[1725647953979,7.9429,125.9,125.85,1.58867745]
[1725647954177,19.8494,125.95,125.86,15.4048]
[1725647954474,19.8494,125.95,125.86,23.35]
[1725647954475,7.9421,125.92,125.86,23.35]
[1725647954662,7.9421,125.92,125.87,45.0]
[1725647954864,59.5352,125.98,125.87,54.53259855]
[1725647955055,59.5352,125.98,125.87,46.58829855]
[1725647955262,59.5352,125.98,125.87,54.53289855]
[1725647955477,7.9403,125.94,125.88,7.944]
[1725647955672,7.9403,125.94,125.89,46.5880109]
[1725647956067,21.82950473,125.98,125.89,45.0]
[1725647956277,7.9415,125.92,125.86,23.3496]
[1725647956456,19.8483,125.96,125.86,15.4048]
[1725647956656,7.9422,125.91,125.86,15.4048]
[1725647956960,7.9416,125.92,125.86,23.3501]
[1725647957271,7.9415,125.92,125.87,45.0]
[1725647957473,7.9415,125.92,125.87,52.9446]
[1725647958190,7.9415,125.92,125.87,45.0]
[1725647958681,39.6922,125.97,125.86,15.4048]
[1725647958866,19.853,125.93,125.86,15.4048]
[1725647959192,7.9428,125.9,125.86,15.4048]
[1725647959690,19.8479,125.96,125.87,1.58844566]
[1725647959889,7.941,125.93,125.88,1.588174]
[1725647960186,19.8437,125.99,125.89,7.9433]
[1725647960388,19.8437,125.99,125.88,46.588174]
[1725647960561,7.9396,125.95,125.9,1.58799543]
[1725647960962,7.9404,125.94,125.9,45.0]
[1725647961160,7.9397,125.95,125.9,45.0]
[1725647961360,19.8437,125.99,125.9,45.0]
[1725647961361,7.9403,125.94,125.9,45.0]
[1725647961582,7.941,125.93,125.89,45.0]
[1725647961786,7.9404,125.94,125.89,52.9433]
[1725647961994,19.8437,125.99,125.89,45.0]
[1725647962285,39.6821,126.01,125.86,15.4048]
[1725647962286,86.67662878,125.98,125.86,15.4048]
[1725647962493,7.9435,125.89,125.86,15.4048]
[1725647962789,19.8481,125.96,125.86,15.4048]
[1725647963087,7.9416,125.92,125.87,7.9446]
[1725647963585,7.9429,125.9,125.86,15.4048]
[1725647963783,7.9429,125.9,125.87,45.0]
[1725647964090,7.9421,125.92,125.87,52.9446]
[1725647964291,19.8516,125.94,125.87,52.9446]
[1725647964292,7.941,125.93,125.88,7.944]
[1725647964587,7.941,125.93,125.89,45.0]
[1725647964806,19.8469,125.97,125.89,52.9433]
[1725647964972,7.9401,125.95,125.89,52.9433]
[1725647965174,7.9401,125.95,125.9,7.9427]
[1725647965375,19.8423,126.0,125.91,52.942]
[1725647965699,7.9376,125.99,125.93,7.9408]
[1725647965887,7.9382,125.98,125.92,7.9414]
[1725647966081,7.9385,125.97,125.93,46.58752841]
[1725647966308,7.9385,125.97,125.93,45.0]
[1725647966512,7.9385,125.97,125.92,45.0]
[1725647966686,260.3,126.03,125.93,19.8517]
[1725647967004,7.9378,125.98,125.93,19.8517]
[1725647967503,7.9384,125.97,125.93,19.8517]
[1725647967886,19.8388,126.02,125.93,19.8517]
[1725647968081,7.937,126.0,125.94,54.52760134]
[1725647968415,19.8388,126.02,125.93,19.8517]
[1725647968598,7.9396,125.95,125.9,27.7988]
[1725647968788,19.8419,126.0,125.91,52.9419]
[1725647968986,7.9378,125.98,125.92,7.9413]
[1725647969190,7.9371,125.99,125.93,52.9408]
[1725647969705,7.9379,125.98,125.93,52.9408]
[1725647969902,7.9379,125.98,125.93,45.0]
[1725647970081,19.8433,125.99,125.89,19.8583]
[1725647970404,19.8433,125.99,125.86,53.8976581]
[1725647970405,1.98478221,125.98,125.86,35.267]
[1725647970706,7.941,125.93,125.87,9.53241468]
[1725647971279,7.941,125.93,125.88,9.5320875]
[1725647971474,21.98504959,125.98,125.86,15.4048]
[1725647971695,7.9426,125.91,125.86,15.4048]
[1725647971899,19.8512,125.94,125.86,15.4048]
[1725647972594,7.9429,125.9,125.86,16.99324096]
[1725647972802,19.8512,125.94,125.86,16.99324096]
[1725647972803,7.9434,125.89,125.86,15.4048]
[1725647972977,7.9427,125.91,125.86,15.4048]
[1725647973183,7.9427,125.91,125.86,23.35]
[1725647973489,7.9427,125.91,125.86,15.4048]
[1725647973881,7.9427,125.91,125.86,23.35]
[1725647974079,7.9416,125.92,125.87,1.58838475]
[1725647974306,19.8497,125.95,125.87,45.0]
[1725647974490,7.941,125.93,125.87,72.8053]
[1725647974815,7.9404,125.94,125.88,9.53163895]
[1725647975110,7.9428,125.9,125.87,45.0]
[1725647975298,21.98514164,125.98,125.87,45.0]
[1725647975299,7.9423,125.91,125.87,45.0]
[1725647975504,7.9409,125.93,125.88,9.53228777]
[1725647975805,19.8466,125.97,125.89,45.0]
[1725647976183,19.8422,126.0,125.89,46.58798835]
[1725647976608,7.9389,125.97,125.92,7.9413]
[1725647976916,19.8422,126.0,125.93,45.0]
[1725647977410,7.9388,125.97,125.93,45.0]
[1725647977907,7.94,125.95,125.9,7.9423]
[1725647978113,7.94,125.95,125.91,45.0]
[1725647978601,7.9391,125.96,125.91,52.9421]
[1725647978806,7.9381,125.98,125.93,7.9406]
[1725647979004,7.9381,125.98,125.94,45.0]
[1725647979482,7.9373,125.99,125.94,54.52722787]
[1725647979682,7.9373,125.99,125.95,16.3991]
[1725647980087,7.9379,125.98,125.95,16.3991]
[1725647980409,7.9371,125.99,125.95,16.3991]
[1725647981386,7.939,125.96,125.95,16.3991]
[1725647981786,19.8449,125.98,125.9,21.5598]
[1725647981787,7.9404,125.94,125.9,21.5598]
[1725647982197,7.9398,125.95,125.9,31.09048892]
[1725647982397,7.9391,125.96,125.91,7.942]
[1725647982812,7.9388,125.97,125.92,7.9414]
[1725647983002,21.82509811,126.01,125.93,45.0]
[1725647983318,20.0,126.0,125.92,45.0]
[1725647983695,20.0,126.0,125.92,52.941]
[1725647983911,19.8405,126.01,125.93,9.52795232]
[1725647984221,19.8405,126.01,125.92,45.0]
[1725647984222,19.8405,126.01,125.92,52.9414]
[1725647984513,7.9379,125.98,125.93,29.38009531]
[1725647984809,7.9379,125.98,125.94,45.0]
[1725647985015,7.9384,125.97,125.94,45.0]
[1725647985196,7.9382,125.98,125.94,45.0]
[1725647986685,7.9371,125.99,125.94,46.58742756]
[1725647986893,7.9378,125.98,125.94,52.9401]
[1725647987116,21.82030157,126.04,125.94,52.9401]
[1725647987306,7.9377,125.98,125.94,45.0]
[1725647987916,7.9371,125.99,125.94,46.58731214]
[1725647988098,19.8345,126.05,125.95,19.8486]
[1725647988299,44.64913584,126.06,125.96,45.0]
[1725647988511,7.9372,125.99,125.96,45.0]
[1725647988811,7.9367,126.0,125.95,52.9394]
[1725647989012,7.9373,125.99,125.95,45.0]
[1725647990702,7.9373,125.99,125.95,52.9395]
[1725647991424,7.9373,125.99,125.95,45.0]
[1725647991717,7.9373,125.99,125.95,52.9396]
[1725647992021,7.9378,125.98,125.95,45.0]
[1725647992514,19.8368,126.03,125.95,45.0]
[1725647992515,7.9365,126.0,125.95,52.9393]
[1725647992812,7.9372,125.99,125.95,54.52672489]
[1725647993014,7.9372,125.99,125.91,71.56833438]
[1725647993015,19.8429,125.99,125.91,27.7961]
[1725647993220,19.8429,125.99,125.91,19.8541]
[1725647993390,41.65928291,126.03,125.91,50.0]
[1725647993595,7.9369,126.0,125.95,7.9395]
[1725647993817,39.8394,126.02,125.95,7.9395]
[1725647993818,7.9375,125.99,125.95,27.7881]
[1725647994624,7.9375,125.99,125.95,19.8486]
[1725647995214,7.9375,125.99,125.95,27.7881]
[1725647995431,7.9375,125.99,125.96,45.0]
[1725647995723,7.9381,125.98,125.96,45.0]
[1725647996027,7.9381,125.98,125.94,7.94]
[1725647996326,7.9381,125.98,125.95,45.0]
[1725647996700,7.937,126.0,125.95,52.9394]
[1725647997219,7.937,126.0,125.96,7.9389]
[1725647997416,7.937,126.0,125.97,45.0]
[1725647997610,7.937,126.0,125.95,54.52662996]
[1725647997815,7.937,126.0,125.95,52.9394]
[1725647998303,7.937,126.0,125.95,54.52663747]
[1725647998500,7.9361,126.01,125.96,7.9385]
[1725647998804,7.9361,126.01,125.97,45.0]
[1725647998997,7.9361,126.01,125.98,15.21]
[1725647999393,7.9347,126.03,125.98,44.5787657]
[1725647999592,286.4029,126.09,126.0,7.9364]
[1725647999823,7.9337,126.05,126.0,7.9364]
[1725648000132,7.9329,126.06,126.01,54.5222823]
[1725648000305,7.9329,126.06,126.02,7.9351]
[1725648000617,7.9329,126.06,126.01,52.9356]
[1725648001620,22.91284173,126.09,126.01,52.9356]
[1725648001621,7.9338,126.05,126.01,45.0]
[1725648001800,19.8235,126.12,126.02,21.42424785]
[1725648001996,39.6529,126.1,126.01,45.0]
[1725648002199,1.98330631,126.09,125.98,21.5233]
[1725648002408,19.8354,126.04,125.98,15.21]
[1725648002603,49.65288794,126.1,125.94,6.5815]
[1725648002604,7.9396,125.95,125.94,22.0364]
[1725648002813,7.9392,125.96,125.94,15.4549]
[1725648003029,1.98414747,126.03,125.94,15.4549]
[1725648003339,7.9371,126.0,125.94,15.4549]
[1725648003629,7.9371,126.0,125.94,23.3947]
[1725648003926,7.9382,125.98,125.94,15.4549]
[1725648004527,7.9373,125.99,125.94,15.4549]
[1725648004824,7.9366,126.0,125.94,15.4549]
[1725648005033,22.93485447,126.03,125.94,15.4549]
[1725648005034,7.9373,125.99,125.94,15.4549]
[1725648005524,24.91900288,126.03,125.94,15.4549]
[1725648005525,7.9392,125.96,125.94,15.4549]
[1725648006932,19.8406,126.01,125.94,15.4549]
[1725648007231,7.9371,126.0,125.94,24.9825282]
[1725648007422,7.9365,126.0,125.94,24.9825282]
[1725648007634,22.90444555,126.04,125.94,17.0424282]
[1725648007807,39.6633,126.07,125.94,17.0424282]
[1725648007808,7.9347,126.03,125.97,7.938]
[1725648008011,7.9347,126.03,125.98,45.0]
[1725648008409,19.8347,126.05,125.94,23.3946]
[1725648008728,7.9365,126.0,125.95,45.0]
[1725648008936,19.8373,126.03,125.95,45.0]
[1725648009437,7.9396,125.95,125.94,15.4549]
[1725648009931,19.8436,125.99,125.94,15.4549]
[1725648010230,19.847,125.97,125.9,22.153]
[1725648010434,19.847,125.97,125.86,21.842]
[1725648010435,1.98544089,125.96,125.86,21.842]
[1725648010628,21.83539224,125.95,125.86,21.842]
[1725648010929,1.98569224,125.95,125.82,21.7405]
[1725648011101,7.9459,125.85,125.82,21.7405]
[1725648011307,7.946,125.85,125.82,15.2658]
[1725648011505,45.0,125.95,125.82,15.2658]
[1725648011506,41.69193856,125.93,125.82,15.2658]
[1725648011728,7.9441,125.88,125.82,23.2135]
[1725648011910,7.9451,125.87,125.82,15.2658]
[1725648012334,7.9447,125.87,125.82,15.2658]
[1725648012538,7.9439,125.89,125.82,15.2658]
[1725648012916,39.7053,125.93,125.82,15.2658]
[1725648012917,3.12912018,125.95,125.85,7.9453]
[1725648013122,39.6821,126.01,125.86,1.58834561]
[1725648013329,7.939,125.96,125.9,7.9427]
[1725648013720,7.9382,125.98,125.91,37.07945821]
[1725648014029,7.9382,125.98,125.92,7.9414]
[1725648014231,7.9385,125.97,125.91,88.4336]
[1725648014537,7.9396,125.95,125.91,60.6362]
[1725648014834,7.939,125.96,125.91,60.6362]
[1725648015732,7.9383,125.98,125.91,70.16619568]
[1725648015936,19.8383,126.02,125.91,62.22409568]
[1725648016122,19.8336,126.05,125.92,26.3471]
[1725648016324,1.98427077,126.04,125.93,45.0]
[1725648016622,7.9372,125.99,125.93,45.0]
[1725648016824,19.8378,126.03,125.92,6.4946]
[1725648017036,7.9382,125.98,125.93,45.0]
[1725648017343,7.9388,125.97,125.92,6.4946]
[1725648017634,7.9388,125.97,125.92,14.4361]
[1725648017839,21.82234198,126.03,125.93,45.0]
[1725648018141,7.9387,125.97,125.93,45.0]
[1725648018642,7.9378,125.98,125.93,45.0]
[1725648018838,7.9389,125.97,125.93,45.0]
[1725648019139,1.98457602,126.01,125.93,45.0]
[1725648019340,7.9385,125.97,125.92,6.4946]
[1725648019519,7.9378,125.98,125.92,6.4946]
[1725648019719,7.9378,125.98,125.93,45.0]
[1725648019910,7.9372,125.99,125.93,52.9408]
[1725648020411,7.9372,125.99,125.94,7.94]
[1725648020608,7.9372,125.99,125.95,45.0]
[1725648020847,7.9372,125.99,125.93,72.7919]
[1725648021613,7.9372,125.99,125.94,7.9401]
[1725648021924,19.8327,126.06,125.95,64.8481]
[1725648022131,19.8327,126.06,125.99,7.9369]
[1725648022324,19.8327,126.06,125.97,16.6458]
[1725648022325,1.9836099,126.05,125.97,36.4911]
[1725648022517,19.8327,126.06,125.98,45.0]
[1725648022518,7.936,126.01,125.98,45.0]
[1725648022712,7.936,126.01,125.97,16.6458]
[1725648022713,7.937,126.0,125.97,16.6458]
[1725648022920,7.9373,125.99,125.97,16.6458]
[1725648023127,7.9365,126.0,125.97,16.6458]
[1725648023438,1.98407834,126.03,125.98,9.52446124]
[1725648023439,7.9347,126.03,125.98,9.52446124]
[1725648023639,19.8312,126.07,125.99,45.0]
[1725648023849,1.98373761,126.06,125.98,19.8438]
[1725648024012,1.98373761,126.06,125.97,16.6458]
[1725648024013,1.9837539,126.06,125.97,16.6458]
[1725648024341,7.9369,126.0,125.97,16.6458]
[1725648025528,7.9377,125.98,125.97,16.6458]
[1725648025742,7.9372,125.99,125.97,16.6458]
[1725648026048,7.9377,125.98,125.97,16.6458]
[1725648026247,7.9377,125.98,125.93,24.0299]
[1725648026422,19.8404,126.01,125.93,16.0891]
[1725648026623,7.9385,125.97,125.93,16.0891]
[1725648026831,19.8359,126.04,125.94,1.58758913]
[1725648027015,20.0,126.03,125.94,1.58758913]
[1725648027218,7.9365,126.0,125.95,7.9391]
[1725648027447,39.6667,126.06,125.95,1.58727548]
[1725648027647,7.9341,126.04,125.99,7.9369]
[1725648027863,7.9341,126.04,126.0,45.0]
[1725648028043,6.4431,126.12,126.0,45.0]
[1725648028044,7.9328,126.06,126.01,24.0249]
[1725648028218,7.9346,126.03,126.02,45.0]
[1725648028536,7.9369,126.0,125.97,16.0891]
[1725648028938,7.9358,126.01,125.97,16.0891]
[1725648029237,1.98391192,126.03,125.97,16.0891]
[1725648029427,19.8358,126.04,125.97,16.0891]
[1725648029428,7.936,126.01,125.97,16.0891]
[1725648029622,19.831,126.07,125.97,16.0891]
[1725648029838,21.98370464,126.06,125.98,45.0]
[1725648030020,7.9356,126.02,125.98,45.0]
[1725648030221,7.9363,126.01,125.98,45.0]
[1725648030422,7.9363,126.01,125.97,35.9341]
[1725648031521,20.0,126.06,125.93,16.0258]
[1725648031522,1.98400298,126.0,125.93,16.0258]
[1725648031724,7.9413,125.93,125.89,16.0258]
[1725648032027,7.9404,125.94,125.89,23.9688]
[1725648032220,21.83136418,125.97,125.89,16.0258]
[1725648032221,1.98513848,125.96,125.89,16.0258]
[1725648032841,19.8497,125.95,125.89,16.0258]
[1725648033032,7.9424,125.91,125.89,16.0258]
[1725648033334,7.9417,125.92,125.89,16.0258]
[1725648035530,7.941,125.93,125.89,16.0258]
[1725648035749,19.8497,125.95,125.89,16.0258]
[1725648035750,7.9417,125.92,125.89,16.0258]
[1725648036082,7.9428,125.9,125.89,16.0258]
[1725648036224,7.9447,125.87,125.84,21.9461]
[1725648036535,7.9442,125.88,125.84,21.9461]
[1725648036866,7.9454,125.86,125.84,21.9461]
[1725648037027,7.9459,125.85,125.84,15.5117]
[1725648037227,19.8592,125.89,125.84,15.5117]
[1725648037654,7.9448,125.87,125.84,15.5117]
[1725648037858,7.9453,125.86,125.84,15.5117]
[1725648038326,7.9459,125.85,125.84,15.5117]
[1725648038749,7.9459,125.85,125.8,41.9754]
[1725648039139,7.9459,125.85,125.8,49.9245]
[1725648039339,7.9469,125.84,125.8,41.9754]
[1725648039647,7.946,125.85,125.8,49.9245]
[1725648040436,7.9454,125.86,125.8,49.9245]
[1725648040859,7.9448,125.87,125.81,45.0]
[1725648041072,7.9448,125.87,125.81,52.9484]
[1725648041250,1.98640655,125.89,125.8,22.1036]
[1725648041433,21.98640655,125.89,125.8,22.1036]
[1725648041638,21.98640655,125.89,125.8,30.0526]
[1725648041858,7.9453,125.86,125.81,7.9483]
[1725648042365,20.0,125.89,125.82,7.9478]
[1725648042535,3.00821824,125.93,125.83,19.8672]
[1725648042853,7.9396,125.95,125.87,19.8604]
[1725648043053,7.9404,125.94,125.89,7.9433]
[1725648044161,7.9421,125.92,125.88,51.2402]
[1725648044367,7.9421,125.92,125.88,6.2402]
[1725648044543,19.8466,125.97,125.88,6.2402]
[1725648044738,19.8466,125.97,125.89,45.0]
[1725648044937,1.98508297,125.96,125.89,45.0]
[1725648045157,19.8466,125.97,125.89,45.0]
[1725648045366,1.98527291,125.96,125.88,6.2402]
[1725648045575,1.98534805,125.95,125.88,6.2402]
[1725648046162,1.98534805,125.95,125.85,22.9677]
[1725648046163,1.98534805,125.95,125.85,15.0218]
[1725648046545,1.98566214,125.94,125.85,15.0218]
[1725648046744,1.98566792,125.93,125.85,22.9673]
[1725648046944,1.98568374,125.97,125.85,22.9673]
[1725648047150,56.98567168,125.97,125.85,15.0218]
[1725648047555,20.0,125.96,125.85,15.0218]
[1725648047882,1.98603189,125.95,125.85,15.0218]
[1725648048061,1.98603189,125.95,125.85,22.9676]
[1725648048377,7.9436,125.89,125.85,15.0218]
[1725648048679,19.8515,125.94,125.85,15.0218]
[1725648048680,21.83734986,125.94,125.85,15.0218]
[1725648048856,7.9429,125.9,125.85,15.0218]
[1725648049174,7.9435,125.89,125.85,15.0218]
[1725648049676,7.9426,125.91,125.85,34.8858]
[1725648049979,7.9417,125.92,125.86,52.9447]
[1725648050182,7.9422,125.91,125.86,52.9447]
[1725648050369,7.9428,125.9,125.86,45.0]
[1725648051186,1.98574143,125.93,125.85,15.0218]
[1725648051355,19.8548,125.92,125.85,15.0218]
[1725648051679,21.98607769,125.91,125.85,15.0218]
[1725648051974,1.98603138,125.9,125.85,15.0218]
[1725648052153,7.9445,125.88,125.85,15.0218]
[1725648052572,7.9435,125.89,125.85,15.0218]
[1725648052767,7.9423,125.91,125.86,52.9449]
[1725648053061,7.9416,125.92,125.87,7.9442]
[1725648054452,19.8501,125.95,125.86,64.8629]
[1725648054762,1.98550608,125.96,125.85,15.0218]
[1725648054763,7.9453,125.86,125.85,15.0218]
[1725648055161,1.98643918,125.93,125.81,15.116]
[1725648055162,19.8591,125.89,125.81,15.116]
[1725648055351,7.9461,125.85,125.81,15.116]
[1725648056456,7.9454,125.86,125.81,23.0643]
[1725648056661,7.9448,125.87,125.82,7.9475]
[1725648056864,7.9448,125.87,125.83,7.9471]
[1725648057580,7.9442,125.88,125.84,52.9465]
[1725648058185,7.9435,125.89,125.84,52.9465]
[1725648058767,7.9428,125.9,125.86,7.9449]
[1725648059586,7.9428,125.9,125.85,7.9457]
[1725648059790,7.9428,125.9,125.86,45.0]
[1725648059959,7.9435,125.89,125.86,45.0]
[1725648060313,7.9452,125.87,125.82,7.9474]
[1725648060465,7.9443,125.88,125.83,7.947]
[1725648060660,59.5552,125.94,125.83,21.45632007]
[1725648060964,7.9419,125.92,125.87,7.9444]
[1725648061575,7.941,125.93,125.88,7.9436]
[1725648061861,7.9428,125.9,125.87,19.8614]
[1725648062065,19.8558,125.91,125.82,7.9476]
[1725648062263,41.68877873,125.94,125.81,15.116]
[1725648062264,7.9476,125.83,125.81,15.116]
[1725648062477,7.9468,125.84,125.81,15.116]
[1725648062768,19.8575,125.9,125.81,15.116]
[1725648062995,7.9459,125.86,125.82,7.9476]
[1725648063388,7.9449,125.87,125.82,7.9476]
[1725648064276,7.9459,125.86,125.83,45.0]
[1725648064476,7.9459,125.86,125.82,27.8169]
[1725648064996,1.986318,125.92,125.82,27.8169]
[1725648064997,25.8549,125.93,125.84,19.8662]
[1725648065196,7.9438,125.89,125.85,45.0]
[1725648065399,19.8556,125.91,125.81,34.986]
[1725648065573,7.946,125.85,125.82,45.0]
[1725648065773,7.9486,125.81,125.77,23.8581]
[1725648066089,7.9477,125.83,125.78,7.9503]
[1725648066294,7.9467,125.84,125.78,1.58945063]
[1725648066593,7.9464,125.85,125.81,7.9483]
[1725648067167,21.84791724,125.88,125.79,19.8739]
[1725648067396,7.9473,125.83,125.79,19.8739]
[1725648067605,39.7136,125.91,125.77,15.9072]
[1725648067606,7.9448,125.87,125.82,7.9474]
[1725648067896,59.57,125.91,125.8,52.949]
[1725648067897,19.859,125.89,125.8,52.949]
[1725648068100,7.9474,125.83,125.78,27.8244]
[1725648068798,7.9468,125.84,125.8,7.949]
[1725648069374,19.8576,125.9,125.8,21.46098092]
[1725648069683,19.8576,125.9,125.8,19.8717]
[1725648069999,19.8604,125.88,125.8,19.8717]
[1725648070379,7.9469,125.84,125.8,19.8717]
[1725648070580,7.9455,125.86,125.81,7.948]
[1725648070779,7.9455,125.86,125.82,7.9478]
[1725648071000,6.0014,125.93,125.82,1.5890347]
[1725648071212,7.9429,125.9,125.85,7.9457]
[1725648071699,7.9422,125.91,125.87,7.9447]
[1725648071871,7.9433,125.9,125.86,64.8631]
[1725648072074,19.8541,125.92,125.83,42.2473]
[1725648072277,7.9442,125.88,125.84,45.0]
[1725648072477,1.98604725,125.91,125.84,45.0]
[1725648072687,19.8541,125.92,125.84,45.0]
[1725648072688,7.943,125.9,125.85,7.9455]
[1725648072889,9.55023434,125.97,125.86,45.0]
[1725648072890,8.46465151,125.97,125.86,45.0]
[1725648073179,7.9413,125.93,125.88,7.9435]
[1725648073688,7.9413,125.93,125.89,52.943]
[1725648073892,19.8469,125.97,125.9,7.9427]
[1725648073893,7.9405,125.94,125.9,7.9427]
[1725648074084,7.9405,125.94,125.89,72.8015]
[1725648074303,19.8421,126.0,125.91,7.9417]
[1725648074505,19.8421,126.0,125.92,45.0]
[1725648074506,7.9384,125.97,125.92,45.0]
[1725648074801,7.9379,125.98,125.92,45.0]
[1725648075003,19.8376,126.03,125.95,7.9395]
[1725648075307,7.9353,126.02,125.97,7.9378]
[1725648075508,7.9353,126.02,125.98,15.9053]
[1725648076506,19.831,126.07,125.99,7.9371]
[1725648076709,7.9344,126.04,125.99,15.97579052]
[1725648077010,7.9332,126.06,126.01,7.9358]
[1725648077314,7.9321,126.07,126.02,52.9351]
[1725648077518,3.10930625,126.15,126.02,45.0]
[1725648077694,7.9302,126.1,126.04,7.9334]
[1725648077887,19.8179,126.15,126.06,7.9327]
[1725648077888,7.9296,126.11,126.06,7.9327]
[1725648078323,7.9296,126.11,126.07,45.0]
[1725648078489,7.9296,126.11,125.94,41.85715696]
[1725648078490,7.9275,126.15,126.08,19.8282]
[1725648078691,19.8127,126.19,126.09,53.22570396]
[1725648078890,6.583,126.21,126.09,53.22570396]
[1725648078891,7.9263,126.17,126.11,7.9295]
[1725648079118,9.99998794,126.27,126.11,7.9295]
[1725648079119,7.9251,126.19,126.13,24.1358]
[1725648079296,28.39111952,126.26,126.13,24.1358]
[1725648079297,28.39111952,126.26,126.13,16.2077]
[1725648079620,7.9252,126.18,126.13,16.2077]
[1725648079920,71.0369939,126.26,126.13,16.2077]
[1725648079921,7.9276,126.14,126.13,16.2077]
[1725648080115,7.9276,126.14,126.09,51.64]
[1725648080425,1.98207098,126.13,126.08,15.3118]
[1725648080593,1.98241558,126.16,126.08,15.3118]
[1725648080917,1.98241558,126.15,126.08,15.3118]
[1725648081315,7.9296,126.11,126.08,14.8118]
[1725648081913,1.98241558,126.15,126.08,14.8118]
[1725648082090,19.8193,126.14,126.08,14.8118]
[1725648082293,1.98274414,126.13,126.08,14.8118]
[1725648082592,19.8142,126.18,126.08,22.7431]
[1725648082799,7.9278,126.14,126.08,14.8118]
[1725648083006,19.8142,126.18,126.08,14.8118]
[1725648083514,7.9285,126.13,126.09,45.0]
[1725648084520,7.9283,126.13,126.09,45.0]
[1725648085313,7.9289,126.12,126.09,45.0]
[1725648085818,7.9289,126.12,126.08,14.8118]
[1725648085819,19.8172,126.16,126.08,14.8118]